{"text_format":"1","workbook":"xlsx","n_sheets":5,"sheets":["Start","Temp data","Raw data","Lists","Pivots"],"not_rendered":{"charts":2,"images":0,"macros":1,"external_links":0,"defined_names":40,"comments":0,"pivot_tables":10},"unopened":[],"bounds":{"document_bytes":16777216,"sheet_cells":100000,"rows_first":2000,"rows_last":500,"rows_between":2000,"halvings":0,"cell_chars":16384,"cell_head_chars":4096},"cells_cut":0,"cells_raw":0,"read":"whole","date_system":"1900"}

{"sheet":"Start","index":0,"n_rows":35,"n_cols":20,"rows_kept":35,"cut":false,"hidden":false,"merged":[[22,4,22,5],[22,14,22,15],[22,6,22,7],[22,8,22,9],[22,10,22,11],[22,12,22,13]]}
["15/07/16, 17:26 from logs_20160718-1525.xlsx"]
[]
[null,"    Summary",null,null,null,null,"    Activity over date range"]
[null,null,null,"Shown data","Recorded data"]
[null,null,"Total page views:",{"$f":"ROWS(selectedActivity)-1","v":52},{"$f":"COUNTA(allActivity)","v":52}]
[null,null,"Total unique users:",{"$f":"COUNTA(selectedUserNames)","v":12},{"$f":"COUNTA(allUserNames)","v":12}]
[null,null,"Total unique actions:",{"$f":"COUNTA(selectedActions)","v":9},{"$f":"COUNTA(allActions)","v":9}]
[null,null,"Total unique pages:",{"$f":"COUNTA(selectedPages)","v":8},{"$f":"COUNTA(allPages)","v":8}]
[null,null,"Total IP addresses:",{"$f":"COUNTA(selectedIPs)","v":11},{"$f":"COUNTA(allIPs)","v":11}]
[null,null,"Median session length:","1 mins"]
[null,null,"First activity:",{"$f":"MIN(selectedDates)","v":"2016-07-15"},{"$f":"MIN(allDates)","v":"00:00:00"}]
[null,null,"Last activity:",{"$f":"MAX(selectedDates)","v":"2016-07-15"},{"$f":"MAX(allDates)","v":"00:00:00"}]
[]
[]
[null,"    Day and time"]
[]
[]
[]
[]
[]
[]
[null,"    Top figures",null,null,null,null,null,null,null,null,null,null,null,null,null,null,null,"   IP addresses"]
[null,null,null,null,"User",null,"Total views",null,"Actions",null,"Pages",null,"Dates",null,"Bounce (% of sessions)",null,null,null,"       IP","Unique users (>3)"]
[null,null,null,"Vaishnavi Kola",null,null,12,"|||||||||||||||||||||||||||||||||||",0,null,1,"||||||",1,"|||||||||||||||||||||||||||||||||||",0]
[null,null,null,"Sue Harrison",null,null,9,"||||||||||||||||||||||||||",0,null,3,"||||||||||||||||||",1,"|||||||||||||||||||||||||||||||||||",0]
[null,null,null,"David Green",null,null,9,"||||||||||||||||||||||||||",0,null,6,"|||||||||||||||||||||||||||||||||||",1,"|||||||||||||||||||||||||||||||||||",0]
[null,null,null,"Moodle Support",null,null,6,"||||||||||||||||||",0,null,1,"||||||",1,"|||||||||||||||||||||||||||||||||||",0]
[null,null,null,"Tugce Gencer",null,null,4,"||||||||||||",0,null,2,"||||||||||||",1,"|||||||||||||||||||||||||||||||||||",0]
[null,null,null,"Andrew Beavil",null,null,4,"||||||||||||",0,null,2,"||||||||||||",1,"|||||||||||||||||||||||||||||||||||",0]
[null,"Show:",null,"Qiao Liu",null,null,3,"|||||||||",0,null,1,"||||||",1,"|||||||||||||||||||||||||||||||||||",0]
[null,null,null,"David Byrne",null,null,1,"|||",0,null,1,"||||||",1,"|||||||||||||||||||||||||||||||||||",100,"|||||||||||||||||||||||||||||||||||"]
[null,null,null,"Jasmine Gillespie",null,null,1,"|||",0,null,1,"||||||",1,"|||||||||||||||||||||||||||||||||||",100,"|||||||||||||||||||||||||||||||||||"]
[null,null,null,"Jennifer Oates",null,null,1,"|||",0,null,1,"||||||",1,"|||||||||||||||||||||||||||||||||||",100,"|||||||||||||||||||||||||||||||||||"]
[null,null,null,"Andreas Konstantinidis",null,null,1,null,0,null,1,null,1]
[null,null,null,"Nabil Asif",null,null,1,null,0,null,1,null,1]

{"sheet":"Temp data","index":1,"n_rows":53,"n_cols":25,"rows_kept":53,"cut":false,"hidden":false,"merged":[]}
["Time","IP address","User full name","Action","Information","Day","Date","Time","userXaction","userXinfo","userXday","userXdate","userXtime","actionXinfo","actionXday","actionXdate","actionXtime","infoXday","infoXdate","infoXtime","dayXtime","IPXuser","IPXdate","Session","Session length (min)"]
["2016-07-15T12:45:00","137.73.204.93","Andreas Konstantinidis","Course viewed","Course: KEATS Staff Support Course",6,"2016-07-15","12:45:00","1",1,1,1,1,1,1,1,1,0,0,1,1,1,1,"Bounce"]
["2016-07-15T13:58:00","159.92.64.252","Andrew Beavil","Course viewed","Course: KEATS Staff Support Course",6,"2016-07-15","13:58:00","1",1,1,1,1,0,0,0,1,0,0,1,1,1,1,"Start session"]
["2016-07-15T13:58:00","159.92.64.252","Andrew Beavil","Role assigned","Course: KEATS Staff Support Course",6,"2016-07-15","13:58:00","1",0,0,0,0,1,1,1,1,0,0,0,0,0,0,"Continue"]
["2016-07-15T13:58:00","159.92.64.252","Andrew Beavil","User enrolled in course","Course: KEATS Staff Support Course",6,"2016-07-15","13:58:00","1",0,0,0,0,1,1,1,1,0,0,0,0,0,0,"Continue"]
["2016-07-15T13:58:00","159.92.64.252","Andrew Beavil","Course module viewed","File: New features of KEATS as of July 2016",6,"2016-07-15","13:58:00","1",1,0,0,0,1,0,0,1,0,0,1,0,0,0,"End session",0]
["2016-07-15T14:41:00","159.92.18.11","David Byrne","Course viewed","Course: KEATS Staff Support Course",6,"2016-07-15","14:41:00","1",1,1,1,1,0,0,0,1,0,0,1,1,1,1,"Bounce"]
["2016-07-15T16:19:00","137.73.24.68","David Green","Course module viewed","File: New features of KEATS as of July 2016",6,"2016-07-15","16:19:00","0",1,0,0,1,0,0,0,1,0,0,1,1,1,1,"Start session"]
["2016-07-15T16:34:00","137.73.24.68","David Green","Course viewed","Course: KEATS Staff Support Course",6,"2016-07-15","16:34:00","0",0,0,0,1,0,0,0,1,0,0,1,1,0,0,"Continue"]
["2016-07-15T16:35:00","137.73.24.68","David Green","Course module viewed","File: Creating a course introduction (using the HTML Editor)",6,"2016-07-15","16:35:00","0",1,0,0,1,1,0,0,1,1,1,1,1,0,0,"Continue"]
["2016-07-15T17:10:00","137.73.24.68","David Green","Course viewed","Course: KEATS Staff Support Course",6,"2016-07-15","17:10:00","0",0,0,0,1,0,0,0,1,0,0,1,1,0,0,"Continue"]
["2016-07-15T17:11:00","137.73.24.68","David Green","Course module viewed","File: Adding labels and structuring your topics",6,"2016-07-15","17:11:00","0",0,0,0,1,1,1,1,1,1,1,1,1,0,0,"Continue"]
["2016-07-15T17:15:00","137.73.24.68","David Green","Course viewed","Course: KEATS Staff Support Course",6,"2016-07-15","17:15:00","1",1,1,1,1,0,0,0,1,0,0,1,1,0,0,"Continue"]
["2016-07-15T17:16:00","137.73.24.68","David Green","Course module viewed","File: Adding labels and structuring your topics",6,"2016-07-15","17:16:00","0",1,0,0,1,0,0,0,1,0,0,1,1,0,0,"Continue"]
["2016-07-15T17:16:00","137.73.24.68","David Green","Course module viewed","File: Editing course settings",6,"2016-07-15","17:16:00","1",1,0,0,0,1,0,0,0,1,1,1,0,0,0,"Continue"]
["2016-07-15T17:16:00","137.73.24.68","David Green","Course module viewed","File: HTML editor options",6,"2016-07-15","17:16:00","0",1,0,0,0,1,0,0,0,1,1,1,0,0,0,"End session",57]
["2016-07-15T15:33:00","159.92.18.184","Jasmine Gillespie","Course viewed","Course: KEATS Staff Support Course",6,"2016-07-15","15:33:00","1",1,1,1,1,0,0,0,1,0,0,1,1,1,1,"Bounce"]
["2016-07-15T13:51:00","137.73.104.86","Jennifer Oates","Course viewed","Course: KEATS Staff Support Course",6,"2016-07-15","13:51:00","1",1,1,1,1,0,0,0,1,0,0,1,1,1,1,"Bounce"]
["2016-07-15T04:00:00",null,"Moodle Support","Role unassigned","Course: KEATS Staff Support Course",6,"2016-07-15","04:00:00","1",1,1,1,1,1,1,1,1,0,0,1,1,1,1,"Start session"]
["2016-07-15T04:00:00",null,"Moodle Support","Role unassigned","Course: KEATS Staff Support Course",6,"2016-07-15","04:00:00","0",0,0,0,0,0,0,0,0,0,0,0,0,0,0,"Continue"]
["2016-07-15T04:00:00",null,"Moodle Support","Role unassigned","Course: KEATS Staff Support Course",6,"2016-07-15","04:00:00","0",0,0,0,0,0,0,0,0,0,0,0,0,0,0,"Continue"]
["2016-07-15T04:00:00",null,"Moodle Support","User unenrolled from course","Course: KEATS Staff Support Course",6,"2016-07-15","04:00:00","1",0,0,0,0,1,1,1,1,0,0,0,0,0,0,"Continue"]
["2016-07-15T04:00:00",null,"Moodle Support","User unenrolled from course","Course: KEATS Staff Support Course",6,"2016-07-15","04:00:00","0",0,0,0,0,0,0,0,0,0,0,0,0,0,0,"Continue"]
["2016-07-15T04:00:00",null,"Moodle Support","User unenrolled from course","Course: KEATS Staff Support Course",6,"2016-07-15","04:00:00","0",0,0,0,0,0,0,0,0,0,0,0,0,0,0,"End session",0]
["2016-07-15T10:11:00","185.69.144.73","Nabil Asif","Course viewed","Course: KEATS Staff Support Course",6,"2016-07-15","10:11:00","1",1,1,1,1,0,0,0,1,1,1,1,1,1,1,"Bounce"]
["2016-07-15T14:30:00","94.119.66.43","Qiao Liu","Course viewed","Course: KEATS Staff Support Course",6,"2016-07-15","14:30:00","1",1,1,1,1,0,0,0,1,0,0,1,1,1,1,"Start session"]
["2016-07-15T14:30:00","94.119.66.43","Qiao Liu","Role assigned","Course: KEATS Staff Support Course",6,"2016-07-15","14:30:00","1",0,0,0,0,0,0,0,1,0,0,0,0,0,0,"Continue"]
["2016-07-15T14:30:00","94.119.66.43","Qiao Liu","User enrolled in course","Course: KEATS Staff Support Course",6,"2016-07-15","14:30:00","1",0,0,0,0,0,0,0,1,0,0,0,0,0,0,"End session",0]
["2016-07-15T11:43:00","159.92.238.58","Sue Harrison","Course viewed","Course: KEATS Staff Support Course",6,"2016-07-15","11:43:00","0",0,0,0,1,0,0,0,1,0,0,1,1,1,1,"Start session"]
["2016-07-15T12:57:00","159.92.238.58","Sue Harrison","Course viewed","Course: KEATS Staff Support Course",6,"2016-07-15","12:57:00","0",0,0,0,1,0,0,0,1,0,0,1,1,0,0,"End session",74]
["2016-07-15T17:12:00","159.92.238.58","Sue Harrison","Course viewed","Course: KEATS Staff Support Course",6,"2016-07-15","17:12:00","0",0,0,0,1,0,0,0,1,0,0,1,1,0,0,"Start session"]
["2016-07-15T17:26:00","159.92.238.58","Sue Harrison","Course viewed","Course: KEATS Staff Support Course",6,"2016-07-15","17:26:00","0",0,0,0,1,0,0,0,1,0,0,1,1,0,0,"Continue"]
["2016-07-15T17:26:00","159.92.238.58","Sue Harrison","Course module viewed","File: KEATS introductory session",6,"2016-07-15","17:26:00","0",0,0,0,0,1,0,0,1,1,1,1,0,0,0,"Continue"]
["2016-07-15T17:27:00","159.92.238.58","Sue Harrison","Course viewed","Course: KEATS Staff Support Course",6,"2016-07-15","17:27:00","1",1,1,1,1,0,0,0,1,0,0,1,1,0,0,"Continue"]
["2016-07-15T17:27:00","159.92.238.58","Sue Harrison","Course module viewed","File: KEATS introductory session",6,"2016-07-15","17:27:00","1",1,0,0,0,0,0,0,1,0,0,1,0,0,0,"Continue"]
["2016-07-15T17:28:00","159.92.238.58","Sue Harrison","Course module deleted","Other",6,"2016-07-15","17:28:00","1",1,0,0,1,1,1,1,1,1,1,1,1,0,0,"Continue"]
["2016-07-15T17:28:00","159.92.238.58","Sue Harrison","Course module deleted","Other",6,"2016-07-15","17:28:00","0",0,0,0,0,0,0,0,0,0,0,0,0,0,0,"End session",16]
["2016-07-15T13:15:00","5.27.106.102","Tugce Gencer","Role assigned","Course: KEATS Staff Support Course",6,"2016-07-15","13:15:00","1",0,0,0,1,0,0,0,1,0,0,1,1,1,1,"Start session"]
["2016-07-15T13:15:00","5.27.106.102","Tugce Gencer","User enrolled in course","Course: KEATS Staff Support Course",6,"2016-07-15","13:15:00","1",0,0,0,0,0,0,0,1,0,0,0,0,0,0,"Continue"]
["2016-07-15T13:15:00","5.27.106.102","Tugce Gencer","Course module viewed","File: New features of KEATS as of July 2016",6,"2016-07-15","13:15:00","1",1,0,0,0,0,0,0,1,1,1,1,0,0,0,"Continue"]
["2016-07-15T13:16:00","5.27.106.102","Tugce Gencer","Grade user report viewed","Course: KEATS Staff Support Course",6,"2016-07-15","13:16:00","1",1,1,1,1,1,1,1,1,0,0,1,1,0,0,"End session",1]
["2016-07-15T10:31:00","137.73.204.148","Vaishnavi Kola","Course viewed","Course: KEATS Staff Support Course",6,"2016-07-15","10:31:00","1",1,1,1,1,0,0,0,1,0,0,1,1,1,1,"Start session"]
["2016-07-15T10:31:00","137.73.204.148","Vaishnavi Kola","Log report viewed","Course: KEATS Staff Support Course",6,"2016-07-15","10:31:00","0",0,0,0,0,1,1,1,1,0,0,0,0,0,0,"Continue"]
["2016-07-15T10:31:00","137.73.204.148","Vaishnavi Kola","Log report viewed","Course: KEATS Staff Support Course",6,"2016-07-15","10:31:00","0",0,0,0,0,0,0,0,0,0,0,0,0,0,0,"Continue"]
["2016-07-15T10:31:00","137.73.204.148","Vaishnavi Kola","Log report viewed","Course: KEATS Staff Support Course",6,"2016-07-15","10:31:00","0",0,0,0,0,0,0,0,0,0,0,0,0,0,0,"Continue"]
["2016-07-15T10:31:00","137.73.204.148","Vaishnavi Kola","Log report viewed","Course: KEATS Staff Support Course",6,"2016-07-15","10:31:00","0",0,0,0,0,0,0,0,0,0,0,0,0,0,0,"Continue"]
["2016-07-15T10:31:00","137.73.204.148","Vaishnavi Kola","Log report viewed","Course: KEATS Staff Support Course",6,"2016-07-15","10:31:00","0",0,0,0,0,0,0,0,0,0,0,0,0,0,0,"Continue"]
["2016-07-15T10:42:00","137.73.204.148","Vaishnavi Kola","Log report viewed","Course: KEATS Staff Support Course",6,"2016-07-15","10:42:00","0",0,0,0,1,0,0,0,1,0,0,1,1,0,0,"Continue"]
["2016-07-15T10:42:00","137.73.204.148","Vaishnavi Kola","Log report viewed","Course: KEATS Staff Support Course",6,"2016-07-15","10:42:00","0",0,0,0,0,0,0,0,0,0,0,0,0,0,0,"End session",11]
["2016-07-15T13:38:00","137.73.204.148","Vaishnavi Kola","Log report viewed","Course: KEATS Staff Support Course",6,"2016-07-15","13:38:00","1",0,0,0,1,0,0,0,1,0,0,1,1,0,0,"Start session"]
["2016-07-15T13:38:00","137.73.204.148","Vaishnavi Kola","Log report viewed","Course: KEATS Staff Support Course",6,"2016-07-15","13:38:00","0",0,0,0,0,0,0,0,0,0,0,0,0,0,0,"Continue"]
["2016-07-15T13:38:00","137.73.204.148","Vaishnavi Kola","Log report viewed","Course: KEATS Staff Support Course",6,"2016-07-15","13:38:00","0",0,0,0,0,0,0,0,0,0,0,0,0,0,0,"Continue"]
["2016-07-15T13:38:00","137.73.204.148","Vaishnavi Kola","Log report viewed","Course: KEATS Staff Support Course",6,"2016-07-15","13:38:00","0",0,0,0,0,0,0,0,0,0,0,0,0,0,0,"End session",0]

{"sheet":"Raw data","index":2,"n_rows":53,"n_cols":9,"rows_kept":53,"cut":false,"hidden":false,"merged":[]}
["Time","IP address","User full name","Action","Information","Day","Date","Time","Origin"]
["2016-07-15T17:28:00","159.92.238.58","Sue Harrison","Course module deleted","Other",6,"2016-07-15","17:28:00","web"]
["2016-07-15T17:28:00","159.92.238.58","Sue Harrison","Course module deleted","Other",6,"2016-07-15","17:28:00","web"]
["2016-07-15T17:27:00","159.92.238.58","Sue Harrison","Course viewed","Course: KEATS Staff Support Course",6,"2016-07-15","17:27:00","web"]
["2016-07-15T17:27:00","159.92.238.58","Sue Harrison","Course module viewed","File: KEATS introductory session",6,"2016-07-15","17:27:00","web"]
["2016-07-15T17:26:00","159.92.238.58","Sue Harrison","Course module viewed","File: KEATS introductory session",6,"2016-07-15","17:26:00","web"]
["2016-07-15T17:26:00","159.92.238.58","Sue Harrison","Course viewed","Course: KEATS Staff Support Course",6,"2016-07-15","17:26:00","web"]
["2016-07-15T17:16:00","137.73.24.68","David Green","Course module viewed","File: Editing course settings",6,"2016-07-15","17:16:00","web"]
["2016-07-15T17:16:00","137.73.24.68","David Green","Course module viewed","File: HTML editor options",6,"2016-07-15","17:16:00","web"]
["2016-07-15T17:16:00","137.73.24.68","David Green","Course module viewed","File: Adding labels and structuring your topics",6,"2016-07-15","17:16:00","web"]
["2016-07-15T17:15:00","137.73.24.68","David Green","Course viewed","Course: KEATS Staff Support Course",6,"2016-07-15","17:15:00","web"]
["2016-07-15T17:12:00","159.92.238.58","Sue Harrison","Course viewed","Course: KEATS Staff Support Course",6,"2016-07-15","17:12:00","web"]
["2016-07-15T17:11:00","137.73.24.68","David Green","Course module viewed","File: Adding labels and structuring your topics",6,"2016-07-15","17:11:00","web"]
["2016-07-15T17:10:00","137.73.24.68","David Green","Course viewed","Course: KEATS Staff Support Course",6,"2016-07-15","17:10:00","web"]
["2016-07-15T16:35:00","137.73.24.68","David Green","Course module viewed","File: Creating a course introduction (using the HTML Editor)",6,"2016-07-15","16:35:00","web"]
["2016-07-15T16:34:00","137.73.24.68","David Green","Course viewed","Course: KEATS Staff Support Course",6,"2016-07-15","16:34:00","web"]
["2016-07-15T16:19:00","137.73.24.68","David Green","Course module viewed","File: New features of KEATS as of July 2016",6,"2016-07-15","16:19:00","web"]
["2016-07-15T15:33:00","159.92.18.184","Jasmine Gillespie","Course viewed","Course: KEATS Staff Support Course",6,"2016-07-15","15:33:00","web"]
["2016-07-15T14:41:00","159.92.18.11","David Byrne","Course viewed","Course: KEATS Staff Support Course",6,"2016-07-15","14:41:00","web"]
["2016-07-15T14:30:00","94.119.66.43","Qiao Liu","Course viewed","Course: KEATS Staff Support Course",6,"2016-07-15","14:30:00","web"]
["2016-07-15T14:30:00","94.119.66.43","Qiao Liu","Role assigned","Course: KEATS Staff Support Course",6,"2016-07-15","14:30:00","web"]
["2016-07-15T14:30:00","94.119.66.43","Qiao Liu","User enrolled in course","Course: KEATS Staff Support Course",6,"2016-07-15","14:30:00","web"]
["2016-07-15T13:58:00","159.92.64.252","Andrew Beavil","Course module viewed","File: New features of KEATS as of July 2016",6,"2016-07-15","13:58:00","web"]
["2016-07-15T13:58:00","159.92.64.252","Andrew Beavil","Course viewed","Course: KEATS Staff Support Course",6,"2016-07-15","13:58:00","web"]
["2016-07-15T13:58:00","159.92.64.252","Andrew Beavil","Role assigned","Course: KEATS Staff Support Course",6,"2016-07-15","13:58:00","web"]
["2016-07-15T13:58:00","159.92.64.252","Andrew Beavil","User enrolled in course","Course: KEATS Staff Support Course",6,"2016-07-15","13:58:00","web"]
["2016-07-15T13:51:00","137.73.104.86","Jennifer Oates","Course viewed","Course: KEATS Staff Support Course",6,"2016-07-15","13:51:00","web"]
["2016-07-15T13:38:00","137.73.204.148","Vaishnavi Kola","Log report viewed","Course: KEATS Staff Support Course",6,"2016-07-15","13:38:00","web"]
["2016-07-15T13:38:00","137.73.204.148","Vaishnavi Kola","Log report viewed","Course: KEATS Staff Support Course",6,"2016-07-15","13:38:00","web"]
["2016-07-15T13:38:00","137.73.204.148","Vaishnavi Kola","Log report viewed","Course: KEATS Staff Support Course",6,"2016-07-15","13:38:00","web"]
["2016-07-15T13:38:00","137.73.204.148","Vaishnavi Kola","Log report viewed","Course: KEATS Staff Support Course",6,"2016-07-15","13:38:00","web"]
["2016-07-15T13:16:00","5.27.106.102","Tugce Gencer","Grade user report viewed","Course: KEATS Staff Support Course",6,"2016-07-15","13:16:00","web"]
["2016-07-15T13:15:00","5.27.106.102","Tugce Gencer","Course module viewed","File: New features of KEATS as of July 2016",6,"2016-07-15","13:15:00","web"]
["2016-07-15T13:15:00","5.27.106.102","Tugce Gencer","Role assigned","Course: KEATS Staff Support Course",6,"2016-07-15","13:15:00","web"]
["2016-07-15T13:15:00","5.27.106.102","Tugce Gencer","User enrolled in course","Course: KEATS Staff Support Course",6,"2016-07-15","13:15:00","web"]
["2016-07-15T12:57:00","159.92.238.58","Sue Harrison","Course viewed","Course: KEATS Staff Support Course",6,"2016-07-15","12:57:00","web"]
["2016-07-15T12:45:00","137.73.204.93","Andreas Konstantinidis","Course viewed","Course: KEATS Staff Support Course",6,"2016-07-15","12:45:00","web"]
["2016-07-15T11:43:00","159.92.238.58","Sue Harrison","Course viewed","Course: KEATS Staff Support Course",6,"2016-07-15","11:43:00","web"]
["2016-07-15T10:42:00","137.73.204.148","Vaishnavi Kola","Log report viewed","Course: KEATS Staff Support Course",6,"2016-07-15","10:42:00","web"]
["2016-07-15T10:42:00","137.73.204.148","Vaishnavi Kola","Log report viewed","Course: KEATS Staff Support Course",6,"2016-07-15","10:42:00","web"]
["2016-07-15T10:31:00","137.73.204.148","Vaishnavi Kola","Log report viewed","Course: KEATS Staff Support Course",6,"2016-07-15","10:31:00","web"]
["2016-07-15T10:31:00","137.73.204.148","Vaishnavi Kola","Log report viewed","Course: KEATS Staff Support Course",6,"2016-07-15","10:31:00","web"]
["2016-07-15T10:31:00","137.73.204.148","Vaishnavi Kola","Log report viewed","Course: KEATS Staff Support Course",6,"2016-07-15","10:31:00","web"]
["2016-07-15T10:31:00","137.73.204.148","Vaishnavi Kola","Log report viewed","Course: KEATS Staff Support Course",6,"2016-07-15","10:31:00","web"]
["2016-07-15T10:31:00","137.73.204.148","Vaishnavi Kola","Log report viewed","Course: KEATS Staff Support Course",6,"2016-07-15","10:31:00","web"]
["2016-07-15T10:31:00","137.73.204.148","Vaishnavi Kola","Course viewed","Course: KEATS Staff Support Course",6,"2016-07-15","10:31:00","web"]
["2016-07-15T10:11:00","185.69.144.73","Nabil Asif","Course viewed","Course: KEATS Staff Support Course",6,"2016-07-15","10:11:00","web"]
["2016-07-15T04:00:00",null,"Moodle Support","User unenrolled from course","Course: KEATS Staff Support Course",6,"2016-07-15","04:00:00","cli"]
["2016-07-15T04:00:00",null,"Moodle Support","Role unassigned","Course: KEATS Staff Support Course",6,"2016-07-15","04:00:00","cli"]
["2016-07-15T04:00:00",null,"Moodle Support","User unenrolled from course","Course: KEATS Staff Support Course",6,"2016-07-15","04:00:00","cli"]
["2016-07-15T04:00:00",null,"Moodle Support","Role unassigned","Course: KEATS Staff Support Course",6,"2016-07-15","04:00:00","cli"]
["2016-07-15T04:00:00",null,"Moodle Support","User unenrolled from course","Course: KEATS Staff Support Course",6,"2016-07-15","04:00:00","cli"]
["2016-07-15T04:00:00",null,"Moodle Support","Role unassigned","Course: KEATS Staff Support Course",6,"2016-07-15","04:00:00","cli"]

{"sheet":"Lists","index":3,"n_rows":27,"n_cols":17,"rows_kept":27,"cut":false,"hidden":false,"merged":[]}
["User full name",null,null,"Action","Action",null,"Information","Information",null,"2016-07-15","Date",null,"Time","Time",null,"IP address","IP address"]
["Andreas Konstantinidis","Andreas Konstantinidis",null,"Course module deleted","Course module deleted",null,"Course: KEATS Staff Support Course","Course: KEATS Staff Support Course",null,"Date","2016-07-15",null,"04:00:00","04:00:00",null,"137.73.104.86","137.73.104.86"]
["Andrew Beavil","Andrew Beavil",null,"Course module viewed","Course module viewed",null,"File: Adding labels and structuring your topics","File: Adding labels and structuring your topics",null,null,null,null,"10:11:00","10:11:00",null,"137.73.204.148","137.73.204.148"]
["David Byrne","David Byrne",null,"Course viewed","Course viewed",null,"File: Creating a course introduction (using the HTML Editor)","File: Creating a course introduction (using the HTML Editor)",null,null,null,null,"10:31:00","10:31:00",null,"137.73.204.93","137.73.204.93"]
["David Green","David Green",null,"Grade user report viewed","Grade user report viewed",null,"File: Editing course settings","File: Editing course settings",null,null,null,null,"10:42:00","10:42:00",null,"137.73.24.68","137.73.24.68"]
["Jasmine Gillespie","Jasmine Gillespie",null,"Log report viewed","Log report viewed",null,"File: HTML editor options","File: HTML editor options",null,null,null,null,"11:43:00","11:43:00",null,"159.92.18.11","159.92.18.11"]
["Jennifer Oates","Jennifer Oates",null,"Role assigned","Role assigned",null,"File: KEATS introductory session","File: KEATS introductory session",null,null,null,null,"12:45:00","12:45:00",null,"159.92.18.184","159.92.18.184"]
["Moodle Support","Moodle Support",null,"Role unassigned","Role unassigned",null,"File: New features of KEATS as of July 2016","File: New features of KEATS as of July 2016",null,null,null,null,"12:57:00","12:57:00",null,"159.92.238.58","159.92.238.58"]
["Nabil Asif","Nabil Asif",null,"User enrolled in course","User enrolled in course",null,"Other","Other",null,null,null,null,"13:15:00","13:15:00",null,"159.92.64.252","159.92.64.252"]
["Qiao Liu","Qiao Liu",null,"User unenrolled from course","User unenrolled from course",null,null,null,null,null,null,null,"13:16:00","13:16:00",null,"185.69.144.73","185.69.144.73"]
["Sue Harrison","Sue Harrison",null,null,null,null,null,null,null,null,null,null,"13:38:00","13:38:00",null,"5.27.106.102","5.27.106.102"]
["Tugce Gencer","Tugce Gencer",null,null,null,null,null,null,null,null,null,null,"13:51:00","13:51:00",null,"94.119.66.43","94.119.66.43"]
["Vaishnavi Kola","Vaishnavi Kola",null,null,null,null,null,null,null,null,null,null,"13:58:00","13:58:00"]
[null,null,null,null,null,null,null,null,null,null,null,null,"14:30:00","14:30:00"]
[null,null,null,null,null,null,null,null,null,null,null,null,"14:41:00","14:41:00"]
[null,null,null,null,null,null,null,null,null,null,null,null,"15:33:00","15:33:00"]
[null,null,null,null,null,null,null,null,null,null,null,null,"16:19:00","16:19:00"]
[null,null,null,null,null,null,null,null,null,null,null,null,"16:34:00","16:34:00"]
[null,null,null,null,null,null,null,null,null,null,null,null,"16:35:00","16:35:00"]
[null,null,null,null,null,null,null,null,null,null,null,null,"17:10:00","17:10:00"]
[null,null,null,null,null,null,null,null,null,null,null,null,"17:11:00","17:11:00"]
[null,null,null,null,null,null,null,null,null,null,null,null,"17:12:00","17:12:00"]
[null,null,null,null,null,null,null,null,null,null,null,null,"17:15:00","17:15:00"]
[null,null,null,null,null,null,null,null,null,null,null,null,"17:16:00","17:16:00"]
[null,null,null,null,null,null,null,null,null,null,null,null,"17:26:00","17:26:00"]
[null,null,null,null,null,null,null,null,null,null,null,null,"17:27:00","17:27:00"]
[null,null,null,null,null,null,null,null,null,null,null,null,"17:28:00","17:28:00"]

{"sheet":"Pivots","index":4,"n_rows":684,"n_cols":88,"rows_kept":684,"cut":false,"hidden":false,"merged":[]}
[null,null,null,null,null,null,10,null,null,null,null,null,null,null,null,null,null,null,null,null,null,null,"User full name","(All)",null,{"$f":"IF(AB1=TRUE,0,AA1)","v":0},0,true,"User",null,null,null,null,null,null,null,null,null,null,null,null,"User full name","(All)",null,null,null,null,{"$f":"IF(AX1=TRUE,0,AW1)","v":0},0,true,false,null,null,null,null,null,null,null,null,null,null,null,null,null,null,"Sessions"]
["Time out (mins)","Users",null,null,null,null,20,null,"Action",null,null,null,null,null,null,"Pages",null,null,null,null,null,"Date","Action","(All)",null,null,null,null,"Page","Date changed directly by macros",null,null,null,null,null,null,null,"Users per IP address",null,null,"Time / day","Action","(All)",null,null,null,null,{"$f":"IF(AX2=TRUE,0,AW2)","v":0},0,true]
[90,null,null,null,null,null,30,null,null,null,null,null,null,null,null,null,null,null,null,null,null,null,"Information","(All)",null,null,"selectedActions",null,"Action",null,null,null,null,null,null,null,null,null,null,null,null,"Information","(All)",null,null,null,null,0,0,true]
[null,null,"Count of User full name","Sum of userXaction","Sum of userXinfo","Sum of userXdate",50,null,null,"Count of userXaction","Sum of userXaction","Sum of actionXinfo","Sum of actionXdate",null,null,null,"Count of userXinfo","Sum of userXinfo2","Sum of actionXinfo","Sum of infoXdate",null,null,"IP address","(All)",null,null,null,null,"IP address","Date","Count of Date","Sum of userXdate","Sum of actionXdate","Sum of infoXdate","Average of Session length (min)","Bounce rate",null,"Row Labels","Sum of IPXuser",null,null,"IP address","(All)",null,null,null,null,0,0,true,null,null,null,null,null,null,null,null,null,null,null,null,null,null,null,"Count of Session","Column Labels",null,null,null,null,null,"Count of Session","Column Labels",null,null,null,null,null,"Count of Session","Column Labels",null,null,null,null,null,"Values"]
[null,"Vaishnavi Kola",12,0,1,1,100,null,"Course viewed",16,0,1,1,null,null,"Course: KEATS Staff Support Course",40,12,7,1,null,null,null,null,null,null,null,null,0,"2016-07-15",{"$f":"IFERROR(GETPIVOTDATA(\"Count of Date\",$W$4,\"Date\",$AD5),0)","v":52},{"$f":"IFERROR(GETPIVOTDATA(\"Sum of userXdate\",$W$4,\"Date\",$AD5),0)","v":12},{"$f":"IFERROR(GETPIVOTDATA(\"Sum of actionXdate\",$W$4,\"Date\",$AD5),0)","v":9},{"$f":"IFERROR(GETPIVOTDATA(\"Sum of infoXdate\",$W$4,\"Date\",$AD5),0)","v":8},{"$f":"IFERROR(GETPIVOTDATA(\"Average of Session length (min)\",$W$4,\"Date\",$AD5),0)","v":17.666666666666668},{"$f":"COUNTIFS('Temp data'!G:G,Pivots!AD5,'Temp data'!X:X, \"Bounce\")/(COUNTIFS('Temp data'!G:G,Pivots!AD5,'Temp data'!X:X, \"End session\")+COUNTIFS('Temp data'!G:G,Pivots!AD5,'Temp data'!X:X, \"Bounce\"))","v":0.35714285714285715},null,null,null,null,null,null,null,null,null,null,null,null,null,null,null,"Row Labels","Monday","Tuesday","Wednesday","Thursday","Friday","Saturday","Sunday","All",null,null,null,null,null,"Row Labels","Bounce","Continue","End session","Start session",null,null,"Row Labels","Bounce","Continue","End session","Start session",null,null,"Row Labels","Bounce","Continue","End session","Start session",null,"Row Labels","Average of Session length (min)","Count of Session length (min)2"]
[null,"Sue Harrison",9,0,3,1,"all",null,"Log report viewed",11,0,1,1,null,null,"File: New features of KEATS as of July 2016",3,3,1,1,null,null,null,"Count of Date","Sum of userXdate","Sum of actionXdate","Sum of infoXdate","Average of Session length (min)",null,null,{"$f":"IFERROR(GETPIVOTDATA(\"Count of Date\",$W$4,\"Date\",$AD6),0)","v":0},{"$f":"IFERROR(GETPIVOTDATA(\"Sum of userXdate\",$W$4,\"Date\",$AD6),0)","v":0},{"$f":"IFERROR(GETPIVOTDATA(\"Sum of actionXdate\",$W$4,\"Date\",$AD6),0)","v":0},{"$f":"IFERROR(GETPIVOTDATA(\"Sum of infoXdate\",$W$4,\"Date\",$AD6),0)","v":0},{"$f":"IFERROR(GETPIVOTDATA(\"Average of Session length (min)\",$W$4,\"Date\",$AD6),0)","v":0},{"$f":"COUNTIFS('Temp data'!G:G,Pivots!AD6,'Temp data'!X:X, \"Bounce\")/(COUNTIFS('Temp data'!G:G,Pivots!AD6,'Temp data'!X:X, \"End session\")+COUNTIFS('Temp data'!G:G,Pivots!AD6,'Temp data'!X:X, \"Bounce\"))","v":{"$error":"#DIV/0!"}},null,null,null,null,null,"Count of Time2",null,null,null,null,null,null,null,null,null,0,{"$f":"IFERROR(GETPIVOTDATA(\"Time2\",$AP$4,\"Day\",2,\"Time2\",$AZ6),0)","v":0},{"$f":"IFERROR(GETPIVOTDATA(\"Time2\",$AP$4,\"Day\",3,\"Time2\",$AZ6),0)","v":0},{"$f":"IFERROR(GETPIVOTDATA(\"Time2\",$AP$4,\"Day\",4,\"Time2\",$AZ6),0)","v":0},{"$f":"IFERROR(GETPIVOTDATA(\"Time2\",$AP$4,\"Day\",5,\"Time2\",$AZ6),0)","v":0},{"$f":"IFERROR(GETPIVOTDATA(\"Time2\",$AP$4,\"Day\",6,\"Time2\",$AZ6),0)","v":0},{"$f":"IFERROR(GETPIVOTDATA(\"Time2\",$AP$4,\"Day\",7,\"Time2\",$AZ6),0)","v":0},{"$f":"IFERROR(GETPIVOTDATA(\"Time2\",$AP$4,\"Day\",1,\"Time2\",$AZ6),0)","v":0},{"$f":"IFERROR(GETPIVOTDATA(\"Time2\",$AP$4,\"Time2\",AZ6),0)","v":0},null,1,null,"12am",null,"Course viewed",5,5,1,5,null,null,"Course: KEATS Staff Support Course",5,21,6,8,null,null,"Andreas Konstantinidis",1,null,null,null,null,"2016-07-15",17.666666666666668,9]
[null,"David Green",9,0,6,1,1,null,"Course module viewed",10,0,6,1,null,null,"File: KEATS introductory session",2,1,1,1,null,null,"2016-07-15",52,12,9,8,17.666666666666668,"Total page views",null,null,null,null,null,null,null,null,null,null,null,null,null,"6","Grand Total",null,null,null,null,null,null,null,1,{"$f":"IFERROR(GETPIVOTDATA(\"Time2\",$AP$4,\"Day\",2,\"Time2\",$AZ7),0)","v":0},{"$f":"IFERROR(GETPIVOTDATA(\"Time2\",$AP$4,\"Day\",3,\"Time2\",$AZ7),0)","v":0},{"$f":"IFERROR(GETPIVOTDATA(\"Time2\",$AP$4,\"Day\",4,\"Time2\",$AZ7),0)","v":0},{"$f":"IFERROR(GETPIVOTDATA(\"Time2\",$AP$4,\"Day\",5,\"Time2\",$AZ7),0)","v":0},{"$f":"IFERROR(GETPIVOTDATA(\"Time2\",$AP$4,\"Day\",6,\"Time2\",$AZ7),0)","v":0},{"$f":"IFERROR(GETPIVOTDATA(\"Time2\",$AP$4,\"Day\",7,\"Time2\",$AZ7),0)","v":0},{"$f":"IFERROR(GETPIVOTDATA(\"Time2\",$AP$4,\"Day\",1,\"Time2\",$AZ7),0)","v":0},0,null,null,null,"1am",null,"Role assigned",null,2,null,1,null,null,"File: New features of KEATS as of July 2016",null,1,1,1,null,null,"Moodle Support",null,4,1,1]
[null,"Moodle Support",6,0,1,1,{"$f":"OFFSET(G1,G7-1,0)","v":10},null,"Role assigned",3,0,1,1,null,null,"Other",2,1,1,1,null,null,null,null,null,null,null,null,null,null,null,null,null,null,null,null,null,null,null,null,null,"04",6,6,null,null,null,null,null,null,null,2,0,0,0,0,0,0,0,0,null,"Monday",null,"2am",null,"User enrolled in course",null,2,1,null,null,null,"File: Creating a course introduction (using the HTML Editor)",null,1,null,null,null,null,"David Byrne",1]
[null,"Tugce Gencer",4,0,2,1,null,null,"User unenrolled from course",3,0,1,1,null,null,"File: Adding labels and structuring your topics",2,1,1,1,null,null,null,null,null,null,null,null,null,null,null,null,null,null,null,null,null,null,null,null,null,"10",9,9,null,null,null,null,null,null,null,3,0,0,0,0,0,0,0,0,null,"Tuesday",null,"3am",null,"Course module viewed",null,7,2,1,null,null,"File: Adding labels and structuring your topics",null,2,null,null,null,null,"David Green",null,7,1,1]
[null,"Andrew Beavil",4,0,2,1,1,null,"User enrolled in course",3,0,1,1,null,null,"File: HTML editor options",1,1,1,1,null,null,null,null,null,null,null,null,null,null,null,null,null,null,null,null,null,null,null,null,null,"11",1,1,null,null,null,null,null,null,null,4,0,0,0,0,6,0,0,6,null,"Wednesday",null,"4am",null,"Role unassigned",null,2,null,1,null,null,"File: Editing course settings",null,1,null,null,null,null,"Jennifer Oates",1]
[null,"Qiao Liu",3,0,1,1,null,null,"Role unassigned",3,0,1,1,null,null,"File: Editing course settings",1,1,1,1,null,null,null,null,null,null,null,null,null,null,null,null,null,null,null,null,null,null,null,null,null,"12",2,2,null,null,null,null,null,null,null,5,0,0,0,0,0,0,0,0,null,"Thursday",null,"5am",null,"User unenrolled from course",null,2,1,null,null,null,"File: HTML editor options",null,null,1,null,null,null,"Nabil Asif",1]
[null,"David Byrne",1,0,1,1,null,null,"Course module deleted",2,0,1,1,null,null,"File: Creating a course introduction (using the HTML Editor)",1,1,1,1,null,null,null,null,null,null,null,null,null,null,null,null,null,null,null,null,null,null,null,null,null,"13",13,13,null,null,null,null,null,null,null,6,0,0,0,0,0,0,0,0,null,"Friday",null,"6am",null,"Course module deleted",null,1,1,null,null,null,"File: KEATS introductory session",null,2,null,null,null,null,"Sue Harrison",null,5,2,2]
[null,"Jasmine Gillespie",1,0,1,1,null,null,"Grade user report viewed",1,0,1,1,null,null,null,null,null,null,null,null,null,null,null,null,null,null,null,null,null,null,null,null,null,null,null,null,null,null,null,null,"14",4,4,null,null,null,null,null,null,null,7,0,0,0,0,0,0,0,0,null,"Saturday",null,"7am",null,"Grade user report viewed",null,null,1,null,null,null,"Other",null,1,1,null,null,null,"Tugce Gencer",null,2,1,1]
[null,"Jennifer Oates",1,0,1,1,null,null,null,null,null,null,null,null,null,null,null,null,null,null,null,null,null,null,null,null,null,null,null,null,null,null,null,null,null,null,null,null,null,null,null,"15",1,1,null,null,null,null,null,null,null,8,0,0,0,0,0,0,0,0,null,"Sunday",null,"8am",null,"Log report viewed",null,8,2,1,null,null,null,null,null,null,null,null,null,"Vaishnavi Kola",null,8,2,2]
[null,"Andreas Konstantinidis",1,0,1,1,null,null,null,null,null,null,null,null,null,null,null,null,null,null,null,null,null,null,null,null,null,null,null,null,null,null,null,null,null,null,null,null,null,null,null,"16",3,3,null,null,null,null,null,null,null,9,0,0,0,0,0,0,0,0,null,null,null,"9am",null,null,null,null,null,null,null,null,null,null,null,null,null,null,null,"Andrew Beavil",null,2,1,1]
[null,"Nabil Asif",1,0,1,1,null,null,null,null,null,null,null,null,null,null,null,null,null,null,null,null,null,null,null,null,null,null,null,null,null,null,null,null,null,null,null,null,null,null,null,"17",13,13,null,null,null,null,null,null,null,10,0,0,0,0,9,0,0,9,null,null,null,"10am",null,null,null,null,null,null,null,null,null,null,null,null,null,null,null,"Jasmine Gillespie",1]
[null,null,null,null,null,null,null,null,null,null,null,null,null,null,null,null,null,null,null,null,null,null,null,null,null,null,null,null,null,null,null,null,null,null,null,null,null,null,null,null,null,null,null,null,null,null,null,null,null,null,null,11,0,0,0,0,1,0,0,1,null,null,null,"11am",null,null,null,null,null,null,null,null,null,null,null,null,null,null,null,"Qiao Liu",null,1,1,1]
[null,null,null,null,null,null,null,null,null,null,null,null,null,null,null,null,null,null,null,null,null,null,null,null,null,null,null,null,null,null,null,null,null,null,null,null,null,null,null,null,null,null,null,null,null,null,null,null,null,null,null,12,0,0,0,0,2,0,0,2,null,null,null,"12pm"]
[null,null,null,null,null,null,null,null,null,null,null,null,null,null,null,null,null,null,null,null,null,null,null,null,null,null,null,null,null,null,null,null,null,null,null,null,null,null,null,null,null,null,null,null,null,null,null,null,null,null,null,13,0,0,0,0,13,0,0,13,null,null,null,"1pm"]
[null,null,null,null,null,null,null,null,null,null,null,null,null,null,null,null,null,null,null,null,null,null,null,null,null,null,null,null,null,null,null,null,null,null,null,null,null,null,null,null,null,null,null,null,null,null,null,null,null,null,null,14,0,0,0,0,4,0,0,4,null,null,null,"2pm"]
[null,null,null,null,null,null,null,null,null,null,null,null,null,null,null,null,null,null,null,null,null,null,null,null,null,null,null,null,null,null,null,null,null,null,null,null,null,null,null,null,null,null,null,null,null,null,null,null,null,null,null,15,0,0,0,0,1,0,0,1,null,null,null,"3pm"]
[null,null,null,null,null,null,null,null,null,null,null,null,null,null,null,null,null,null,null,null,null,null,null,null,null,null,null,null,null,null,null,null,null,null,null,null,null,null,null,null,null,null,null,null,null,null,null,null,null,null,null,16,0,0,0,0,3,0,0,3,null,null,null,"4pm"]
[null,null,null,null,null,null,null,null,null,null,null,null,null,null,null,null,null,null,null,null,null,null,null,null,null,null,null,null,null,null,null,null,null,null,null,null,null,null,null,null,null,null,null,null,null,null,null,null,null,null,null,17,0,0,0,0,13,0,0,13,null,null,null,"5pm"]
[null,null,null,null,null,null,null,null,null,null,null,null,null,null,null,null,null,null,null,null,null,null,null,null,null,null,null,null,null,null,null,null,null,null,null,null,null,null,null,null,null,null,null,null,null,null,null,null,null,null,null,18,0,0,0,0,0,0,0,0,null,null,null,"6pm"]
[null,null,null,null,null,null,null,null,null,null,null,null,null,null,null,null,null,null,null,null,null,null,null,null,null,null,null,null,null,null,null,null,null,null,null,null,null,null,null,null,null,null,null,null,null,null,null,null,null,null,null,19,0,0,0,0,0,0,0,0,null,null,null,"7pm"]
[null,null,null,null,null,null,null,null,null,null,null,null,null,null,null,null,null,null,null,null,null,null,null,null,null,null,null,null,null,null,null,null,null,null,null,null,null,null,null,null,null,null,null,null,null,null,null,null,null,null,null,20,0,0,0,0,0,0,0,0,null,null,null,"8pm"]
[null,null,null,null,null,null,null,null,null,null,null,null,null,null,null,null,null,null,null,null,null,null,null,null,null,null,null,null,null,null,null,null,null,null,null,null,null,null,null,null,null,null,null,null,null,null,null,null,null,null,null,21,0,0,0,0,0,0,0,0,null,null,null,"9pm"]
[null,null,null,null,null,null,null,null,null,null,null,null,null,null,null,null,null,null,null,null,null,null,null,null,null,null,null,null,null,null,null,null,null,null,null,null,null,null,null,null,null,null,null,null,null,null,null,null,null,null,null,22,0,0,0,0,0,0,0,0,null,null,null,"10pm"]
[null,null,null,null,null,null,null,null,null,null,null,null,null,null,null,null,null,null,null,null,null,null,null,null,null,null,null,null,null,null,null,null,null,null,null,null,null,null,null,null,null,null,null,null,null,null,null,null,null,null,null,23,0,0,0,0,0,0,0,0,null,null,null,"11pm"]
[null,null,null,null,null,null,null,null,null,null,null,null,null,null,null,null,null,null,null,null,null,null,null,null,null,null,null,null,null,null,null,null,null,null,null,null,null,null,null,null,null,null,null,null,null,null,null,null,null,null,null,24,{"$f":"BB6","v":0},{"$f":"BC6","v":0},0,0,0,{"$f":"BG6","v":0},{"$f":"BA6","v":0},{"$f":"BH6","v":0}]
[]
[]
[]
[]
[]
[]
[]
[]
[]
[]
[]
[]
[]
[]
[]
[]
[]
[]
[]
[]
[]
[]
[]
[]
[]
[]
[]
[]
[]
[]
[]
[]
[]
[]
[]
[]
[]
[]
[]
[]
[]
[]
[]
[]
[]
[]
[]
[]
[]
[]
[]
[]
[]
[]
[]
[]
[]
[]
[]
[]
[]
[]
[]
[]
[]
[]
[]
[]
[]
[]
[]
[]
[]
[]
[]
[]
[]
[]
[]
[]
[]
[]
[]
[]
[]
[]
[]
[]
[]
[]
[]
[]
[]
[]
[]
[]
[]
[]
[]
[]
[]
[]
[]
[]
[]
[]
[]
[]
[]
[]
[]
[]
[]
[]
[]
[]
[]
[]
[]
[]
[]
[]
[]
[]
[]
[]
[]
[]
[]
[]
[]
[]
[]
[]
[]
[]
[]
[]
[]
[]
[]
[]
[]
[]
[]
[]
[]
[]
[]
[]
[]
[]
[]
[]
[]
[]
[]
[]
[]
[]
[]
[]
[]
[]
[]
[]
[]
[]
[]
[]
[]
[]
[]
[]
[]
[]
[]
[]
[]
[]
[]
[]
[]
[]
[]
[]
[]
[]
[]
[]
[]
[]
[]
[]
[]
[]
[]
[]
[]
[]
[]
[]
[]
[]
[]
[]
[]
[]
[]
[]
[]
[]
[]
[]
[]
[]
[]
[]
[]
[]
[]
[]
[]
[]
[]
[]
[]
[]
[]
[]
[]
[]
[]
[]
[]
[]
[]
[]
[]
[]
[]
[]
[]
[]
[]
[]
[]
[]
[]
[]
[]
[]
[]
[]
[]
[]
[]
[]
[]
[]
[]
[]
[]
[]
[]
[]
[]
[]
[]
[]
[]
[]
[]
[]
[]
[]
[]
[]
[]
[]
[]
[]
[]
[]
[]
[]
[]
[]
[]
[]
[]
[]
[]
[]
[]
[]
[]
[]
[]
[]
[]
[]
[]
[]
[]
[]
[]
[]
[]
[]
[]
[]
[]
[]
[]
[]
[]
[]
[]
[]
[]
[]
[]
[]
[]
[]
[]
[]
[]
[]
[]
[]
[]
[]
[]
[]
[]
[]
[]
[]
[]
[]
[]
[]
[]
[]
[]
[]
[]
[]
[]
[]
[]
[]
[]
[]
[]
[]
[]
[]
[]
[]
[]
[]
[]
[]
[]
[]
[]
[]
[]
[]
[]
[]
[]
[]
[]
[]
[]
[]
[]
[]
[]
[]
[]
[]
[]
[]
[]
[]
[]
[]
[]
[]
[]
[]
[]
[]
[]
[]
[]
[]
[]
[]
[]
[]
[]
[]
[]
[]
[]
[]
[]
[]
[]
[]
[]
[]
[]
[]
[]
[]
[]
[]
[]
[]
[]
[]
[]
[]
[]
[]
[]
[]
[]
[]
[]
[]
[]
[]
[]
[]
[]
[]
[]
[]
[]
[]
[]
[]
[]
[]
[]
[]
[]
[]
[]
[]
[]
[]
[]
[]
[]
[]
[]
[]
[]
[]
[]
[]
[]
[]
[]
[]
[]
[]
[]
[]
[]
[]
[]
[]
[]
[]
[]
[]
[]
[]
[]
[]
[]
[]
[]
[]
[]
[]
[]
[]
[]
[]
[]
[]
[]
[]
[]
[]
[]
[]
[]
[]
[]
[]
[]
[]
[]
[]
[]
[]
[]
[]
[]
[]
[]
[]
[]
[]
[]
[]
[]
[]
[]
[]
[]
[]
[]
[]
[]
[]
[]
[]
[]
[]
[]
[]
[]
[]
[]
[]
[]
[]
[]
[]
[]
[]
[]
[]
[]
[]
[]
[]
[]
[]
[]
[]
[]
[]
[]
[]
[]
[]
[]
[]
[]
[]
[]
[]
[]
[]
[]
[]
[]
[]
[]
[]
[]
[]
[]
[]
[]
[]
[]
[]
[]
[]
[]
[]
[]
[]
[]
[]
[]
[]
[]
[]
[]
[]
[]
[]
[]
[]
[]
[]
[]
[]
[]
[]
[]
[]
[]
[]
[]
[]
[]
[]
[]
[]
[]
[]
[]
[]
[]
[]
[]
[]
[]
[]
[]
[]
[]
[]
[]
[]
[]
[]
[]
[]
[]
[]
[]
[]
[]
[]
[]
[1,2,3,4,5,6,7,8,null,null,null,null,null,14,15]